fUST/lending_fUST_20250623
["ID","MTS","AMOUNT","RATE_DAILY","PERIOD"]
[367056721,1750639863904,-647.88,0.00022739,2]
[367056722,1750639863913,-652.67,0.00022739,2]
[367056723,1750639863923,-460.0,0.00022739,2]
[367056724,1750639863932,-975.0,0.00022739,2]
[367056725,1750639863941,-460.0,0.00022739,2]
[367056726,1750639863951,-963.32,0.00022739,2]
[367056727,1750639863960,-460.0,0.00022739,2]
[367056728,1750639864124,-460.0,0.00022739,2]
[367056729,1750639864140,-460.0,0.00022739,2]
[367056730,1750639864149,-1615.31,0.00022739,2]
[367056731,1750639864159,-460.0,0.00022739,2]
[367056732,1750639864168,-712.252841,0.00022739,7]
[367056733,1750639864180,-460.0,0.00022739,2]
[367056734,1750639864189,-712.252841,0.00022739,7]
[367056735,1750639864198,-275.722512,0.00022739,7]
[367056736,1750639864208,-460.0,0.00022739,2]
[367056737,1750639864222,-1308.56,0.00022739,2]
[367056738,1750639864232,-460.0,0.00022739,2]
[367056739,1750639864242,-712.252841,0.00022739,7]
[367056740,1750639864252,-712.252841,0.00022739,7]
[367056741,1750639864262,-460.0,0.00022739,2]
[367056742,1750639864271,-1593.64,0.00022739,2]
[367056743,1750639864281,-1149.69,0.00022739,2]
[367056744,1750639864291,-460.0,0.00022739,2]
[367056745,1750639864301,-460.0,0.00022739,2]
[367056746,1750639864310,-460.0,0.00022739,2]
[367056747,1750639864320,-1671.46,0.00022739,2]
[367056748,1750639864330,-460.0,0.00022739,2]
[367056749,1750639864341,-460.0,0.00022739,2]
[367056750,1750639864351,-1162.67,0.00022739,2]
[367056751,1750639864360,-158.292417,0.00022739,7]
[367056752,1750639864370,-733.82,0.00022739,2]
[367056753,1750639864379,-460.0,0.00022739,2]
[367056754,1750639864388,-589.76,0.00022739,2]
[367056755,1750639864399,-703.04,0.00022739,2]
[367056756,1750639864408,-460.0,0.00022739,2]
[367056757,1750639864418,-460.0,0.00022739,2]
[367056758,1750639864428,-1388.78,0.00022739,2]
[367056759,1750639864438,-1207.94,0.00022739,2]
[367056760,1750639864447,-795.21,0.00022739,2]
[367056761,1750639864458,-460.0,0.00022739,2]
[367056762,1750639864468,-274.53825942,0.00022739,2]
[367056763,1750639864477,-460.0,0.00022739,2]
[367056764,1750639864487,-460.0,0.00022739,2]
[367056765,1750639864497,-460.0,0.00022739,2]
[367056766,1750639864506,-825.13,0.00022739,2]
[367056767,1750639864517,-460.0,0.00022739,2]
[367056768,1750639864527,-460.0,0.00022739,2]
[367056769,1750639864537,-460.0,0.00022739,2]
[367056770,1750639864546,-2488.34,0.00022739,2]
[367056771,1750639864556,-625.86,0.00022739,2]
[367056772,1750639864566,-460.0,0.00022739,2]
[367056773,1750639864576,-460.0,0.00022739,2]
[367056774,1750639864586,-641.12,0.00022739,2]
[367056775,1750639864596,-460.0,0.00022739,2]
[367056776,1750639864606,-958.86,0.00022739,2]
[367056777,1750639864616,-223.58733939,0.00022739,2]
[367056778,1750639864626,-460.0,0.00022739,2]
[367056779,1750639864635,-270.27761487,0.00022739,2]
[367056780,1750639864646,-752.46,0.00022739,2]
[367056781,1750639864656,-614.27,0.00022739,2]
[367056782,1750639864666,-460.0,0.00022739,2]
[367056783,1750639864676,-460.0,0.00022739,2]
[367056784,1750639864686,-1769.62,0.00022739,2]
[367056785,1750639864696,-460.0,0.00022739,2]
[367056786,1750639864705,-585.96600534,0.00022739,2]
[367056787,1750639864716,-232.319353,0.00022739,7]
[367056788,1750639864726,-1144.09,0.00022739,2]
[367056789,1750639864735,-232.319353,0.00022739,7]
[367056790,1750639864745,-460.0,0.00022739,2]
[367056791,1750639864756,-960.82,0.00022739,2]
[367056792,1750639864766,-232.319353,0.00022739,7]
[367056793,1750639864775,-232.319353,0.00022739,7]
[367056794,1750639864785,-1002.89,0.00022739,2]
[367056795,1750639864795,-614.93,0.00022739,2]
[367056796,1750639864805,-575.42,0.00022739,2]
[367056797,1750639864815,-2612.949413,0.00022739,7]
[367056798,1750639864824,-460.0,0.00022739,2]
[367056799,1750639864836,-616.99,0.00022739,2]
[367056800,1750639864845,-2612.949413,0.00022739,7]
[367056801,1750639864855,-698.5,0.00022739,2]
[367056802,1750639864866,-460.0,0.00022739,2]
[367056803,1750639864875,-460.0,0.00022739,2]
[367056804,1750639864884,-460.0,0.00022739,2]
[367056805,1750639864894,-460.0,0.00022739,2]
[367056806,1750639864903,-971.67,0.00022739,2]
[367056807,1750639864912,-859.09,0.00022739,2]
[367056808,1750639864922,-1083.29,0.00022739,2]
[367056809,1750639864932,-4023.46,0.00022739,2]
[367056810,1750639864941,-872.55,0.00022739,2]
[367056811,1750639864951,-460.0,0.00022739,2]
[367056812,1750639864960,-784.68,0.00022739,2]
[367056813,1750639864970,-460.0,0.00022739,2]
[367056814,1750639864982,-460.0,0.00022739,2]
[367056815,1750639864992,-2728.64,0.00022739,2]
[367056816,1750639865001,-1549.07,0.00022739,2]
[367056817,1750639865011,-596.17512514,0.00022739,2]
[367056818,1750639865020,-1138.65,0.00022739,2]
[367056819,1750639865031,-460.0,0.00022739,2]
[367056820,1750639865040,-460.0,0.00022739,2]
[367056821,1750639865050,-940.89,0.00022739,2]
[367056822,1750639865059,-460.0,0.00022739,2]
[367056823,1750639865069,-1308.58,0.00022739,2]
[367056824,1750639865079,-374.84445515,0.00022739,2]
[367056825,1750639865091,-460.0,0.00022739,2]
[367056826,1750639865100,-460.0,0.00022739,2]
[367056827,1750639865111,-460.0,0.00022739,2]
[367056828,1750639865121,-2673.76,0.00022739,2]
[367056829,1750639865131,-460.0,0.00022739,2]
[367056830,1750639865142,-1110.27,0.00022739,2]
[367056831,1750639865152,-380.45866287,0.00022739,2]
[367056832,1750639865162,-460.0,0.00022739,2]
[367056833,1750639865175,-460.0,0.00022739,2]
[367056834,1750639865186,-460.0,0.00022739,2]
[367056835,1750639865196,-461.6,0.00022739,2]
[367056836,1750639865205,-509.75,0.00022739,2]
[367056837,1750639865217,-460.0,0.00022739,2]
[367056838,1750639865227,-151.0,0.00022739,7]
[367056839,1750639865236,-301.563291,0.00022739,7]
[367056840,1750639865246,-460.0,0.00022739,2]
[367056841,1750639865255,-460.0,0.00022739,2]
[367056842,1750639865265,-460.0,0.00022739,2]
[367056843,1750639865275,-1734.3,0.00022739,2]
[367056844,1750639865285,-460.0,0.00022739,2]
[367056845,1750639865295,-924.7,0.00022739,2]
[367056846,1750639865304,-460.0,0.00022739,2]
[367056847,1750639865313,-460.0,0.00022739,2]
[367056848,1750639865323,-543.61,0.00022739,2]
[367056849,1750639865333,-2467.5,0.00022739,2]
[367056850,1750639865345,-348.039404,0.00022739,7]
[367056851,1750639865355,-460.0,0.00022739,2]
[367056852,1750639865365,-460.0,0.00022739,2]
[367056853,1750639865375,-460.0,0.00022739,2]
[367056854,1750639865385,-348.039404,0.00022739,7]
[367056855,1750639865395,-1504.35,0.00022739,2]
[367056856,1750639865404,-460.0,0.00022739,2]
[367056857,1750639865414,-1578.29,0.00022739,2]
[367056858,1750639865424,-455.46053862,0.00022739,2]
[367056859,1750639865434,-1497.69,0.00022739,2]
[367056860,1750639865443,-460.0,0.00022739,2]
[367056861,1750639865453,-460.0,0.00022739,2]
[367056862,1750639865462,-460.0,0.00022739,2]
[367056863,1750639865471,-460.0,0.00022739,2]
[367056864,1750639865481,-662.51,0.00022739,2]
[367056865,1750639865491,-460.0,0.00022739,2]
[367056866,1750639865500,-460.0,0.00022739,2]
[367056867,1750639865510,-366.23323993,0.00022739,2]
[367056868,1750639865519,-606.05,0.00022739,2]
[367056869,1750639865529,-460.0,0.00022739,2]
[367056870,1750639865539,-607.16990538,0.00022739,2]
[367056871,1750639865549,-151.0,0.00022739,7]
[367056872,1750639865560,-151.0,0.00022739,7]
[367056873,1750639865570,-151.0,0.00022739,7]
[367056874,1750639865581,-151.0,0.00022739,7]
[367056875,1750639865592,-520.94,0.00022739,2]
[367056876,1750639865605,-1603.67,0.00022739,2]
[367056877,1750639865615,-460.0,0.00022739,2]
[367056878,1750639865625,-972.63,0.00022739,2]
[367056879,1750639865636,-151.0,0.00022739,7]
[367056880,1750639865648,-460.0,0.00022739,2]
[367056881,1750639865657,-151.0,0.00022739,7]
[367056882,1750639865667,-460.0,0.00022739,2]
[367056883,1750639865678,-527.86,0.00022739,2]
[367056884,1750639865687,-1405.52,0.00022739,2]
[367056885,1750639865697,-1891.75,0.00022739,2]
[367056886,1750639865707,-460.0,0.00022739,2]
[367056887,1750639865716,-460.0,0.00022739,2]
[367056888,1750639865725,-614.19,0.00022739,2]
[367056889,1750639865736,-151.0,0.00022739,7]
[367056890,1750639865745,-151.0,0.00022739,7]
[367056891,1750639865755,-648.424325,0.00022739,7]
[367056892,1750639865764,-605.14,0.00022739,2]
[367056893,1750639865774,-648.424325,0.00022739,7]
[367056894,1750639865783,-460.0,0.00022739,2]
[367056895,1750639865793,-460.0,0.00022739,2]
[367056896,1750639865803,-460.0,0.00022739,2]
[367056897,1750639865813,-460.0,0.00022739,2]
[367056898,1750639865822,-668.56,0.00022739,2]
[367056899,1750639865832,-460.0,0.00022739,2]
[367056900,1750639865843,-460.0,0.00022739,2]
[367056901,1750639865853,-699.73,0.00022739,2]
[367056902,1750639865863,-460.0,0.00022739,2]
[367056903,1750639865873,-333.76466926,0.00022739,2]
[367056904,1750639865883,-500.0,0.00022739,2]
[367056905,1750639865893,-460.0,0.00022739,2]
[367056906,1750639865903,-1360.06,0.00022739,2]
[367056907,1750639865913,-460.0,0.00022739,2]
[367056908,1750639865922,-529.72,0.00022739,2]
[367056909,1750639865931,-460.0,0.00022739,2]
[367056910,1750639865939,-460.0,0.00022739,2]
[367056911,1750639865949,-460.0,0.00022739,2]
[367056912,1750639865958,-166.915495,0.00022739,7]
[367056913,1750639865967,-166.915495,0.00022739,7]
[367056914,1750639865976,-427.78421591,0.00022739,2]
[367056915,1750639865985,-166.915495,0.00022739,7]
[367056916,1750639865995,-166.915495,0.00022739,7]
[367056917,1750639866004,-832.9,0.00022739,2]
[367056918,1750639866013,-460.0,0.00022739,2]
[367056919,1750639866022,-151.0,0.00022739,7]
[367056920,1750639866031,-151.0,0.00022739,7]
[367056921,1750639866041,-460.0,0.00022739,2]
[367056922,1750639866050,-1781.3,0.00022739,2]
[367056923,1750639866059,-460.0,0.00022739,2]
[367056924,1750639866069,-460.0,0.00022739,2]
[367056925,1750639866079,-197.827342,0.00022739,7]
[367056926,1750639866091,-197.827342,0.00022739,7]
[367056927,1750639866102,-460.0,0.00022739,2]
[367056928,1750639866112,-197.827342,0.00022739,7]
[367056929,1750639866122,-197.827342,0.00022739,7]
[367056930,1750639866131,-460.0,0.00022739,2]
[367056931,1750639866141,-195.293511,0.00022739,7]
[367056932,1750639866150,-460.0,0.00022739,2]
[367056933,1750639866159,-2036.4,0.00022739,2]
[367056934,1750639866170,-1000.81,0.00022739,2]
[367056935,1750639866181,-460.0,0.00022739,2]
[367056936,1750639866190,-557.76,0.00022739,2]
[367056937,1750639866200,-212.7600849,0.00022739,2]
[367056938,1750639866210,-759.38,0.00022739,2]
[367056939,1750639866220,-460.0,0.00022739,2]
[367056940,1750639866230,-460.98,0.00022739,2]
[367056941,1750639866239,-460.0,0.00022739,2]
[367056942,1750639866249,-12551.52821599,0.00022739,7]
[367056943,1750639866259,-460.0,0.00022739,2]
[367056944,1750639866268,-460.0,0.00022739,2]
[367056945,1750639866278,-488.83715503,0.00022739,2]
[367056946,1750639866288,-460.0,0.00022739,2]
[367056947,1750639866298,-151.0,0.00022739,7]
[367056948,1750639866307,-151.0,0.00022739,7]
[367056949,1750639866316,-460.0,0.00022739,2]
[367056950,1750639866326,-460.0,0.00022739,2]
[367056951,1750639866335,-746.12,0.00022739,2]
[367056952,1750639866347,-595.78,0.00022739,2]
[367056953,1750639866357,-151.0,0.00022739,7]
[367056954,1750639866366,-2294.47,0.00022739,2]
[367056955,1750639866376,-151.0,0.00022739,7]
[367056956,1750639866386,-460.0,0.00022739,2]
[367056957,1750639866395,-567.97,0.00022739,2]
[367056958,1750639866405,-2664.66,0.00022739,2]
[367056959,1750639866414,-542.65386356,0.00022739,2]
[367056960,1750639866436,-477.65,0.00022739,2]
[367056961,1750639866447,-2395.58,0.00022739,2]
[367056962,1750639866458,-460.0,0.00022739,2]
[367056963,1750639866470,-5283.56,0.00022739,2]
[367056964,1750639866480,-460.0,0.00022739,2]
[367056965,1750639866491,-460.0,0.00022739,2]
[367056966,1750639866501,-448.66522748,0.00022739,2]
[367056967,1750639866511,-460.0,0.00022739,2]
[367056968,1750639866522,-1183.35,0.00022739,2]
[367056969,1750639866532,-460.0,0.00022739,2]
[367056970,1750639866542,-3383.6,0.00022739,2]
[367056971,1750639866552,-460.0,0.00022739,2]
[367056972,1750639866563,-460.0,0.00022739,2]
[367056973,1750639866675,-460.0,0.00022739,2]
[367056974,1750639866684,-151.0,0.00022739,7]
[367056975,1750639866694,-151.0,0.00022739,7]
[367056976,1750639866704,-460.0,0.00022739,2]
[367056977,1750639866713,-395.22487269,0.00022739,2]
[367056978,1750639866723,-460.0,0.00022739,2]
[367056979,1750639866733,-460.0,0.00022739,2]
[367056980,1750639866743,-592.01,0.00022739,2]
[367056981,1750639866752,-929.93,0.00022739,2]
[367056982,1750639866762,-460.0,0.00022739,2]
[367056983,1750639866771,-460.0,0.00022739,2]
[367056984,1750639866780,-932.24,0.00022739,2]
[367056985,1750639866790,-460.0,0.00022739,2]
[367056986,1750639866799,-460.0,0.00022739,2]
[367056987,1750639866809,-460.0,0.00022739,2]
[367056988,1750639866818,-460.0,0.00022739,2]
[367056989,1750639866828,-460.0,0.00022739,2]
[367056990,1750639866837,-460.0,0.00022739,2]
[367056991,1750639866848,-519.66,0.00022739,2]
[367056992,1750639866857,-460.0,0.00022739,2]
[367056993,1750639866866,-460.0,0.00022739,2]
[367056994,1750639866875,-1906.75,0.00022739,2]
[367056995,1750639866884,-476.17,0.00022739,2]
[367056996,1750639866893,-460.0,0.00022739,2]
[367056997,1750639866903,-460.0,0.00022739,2]
[367056998,1750639866912,-1055.15,0.00022739,2]
[367056999,1750639866921,-460.0,0.00022739,2]
[367057000,1750639866931,-460.0,0.00022739,2]
[367057001,1750639866940,-515.59,0.00022739,2]
[367057002,1750639866948,-460.0,0.00022739,2]
[367057003,1750639866957,-460.0,0.00022739,2]
[367057004,1750639866966,-6574.74,0.00022739,2]
[367057005,1750639866975,-506.07,0.00022739,2]
[367057006,1750639866984,-460.0,0.00022739,2]
[367057007,1750639866993,-460.0,0.00022739,2]
[367057008,1750639867002,-460.0,0.00022739,2]
[367057009,1750639867012,-6431.01,0.00022739,2]
[367057010,1750639867021,-460.0,0.00022739,2]
[367057011,1750639867030,-151.0,0.00022739,7]
[367057012,1750639867039,-487.62,0.00022739,2]
[367057013,1750639867048,-460.0,0.00022739,2]
[367057014,1750639867057,-460.0,0.00022739,2]
[367057015,1750639867066,-151.0,0.00022739,7]
[367057016,1750639867075,-460.0,0.00022739,2]
[367057017,1750639867084,-460.0,0.00022739,2]
[367057018,1750639867094,-151.0,0.00022739,7]
[367057019,1750639867103,-151.0,0.00022739,7]
[367057020,1750639867112,-460.0,0.00022739,2]
[367057021,1750639867121,-460.0,0.00022739,2]
[367057022,1750639867130,-635.2,0.00022739,2]
[367057023,1750639867139,-796.06,0.00022739,2]
[367057024,1750639867147,-460.0,0.00022739,2]
[367057025,1750639867157,-514.38027467,0.00022739,2]
[367057026,1750639867166,-2494.88,0.00022739,2]
[367057027,1750639867179,-460.0,0.00022739,2]
[367057028,1750639867188,-172.3810877,0.00022739,2]
[367057029,1750639867196,-6867.71,0.00022739,2]
[367057030,1750639867208,-963.72,0.00022739,2]
[367057031,1750639867218,-501.36,0.00022739,2]
[367057032,1750639867227,-460.0,0.00022739,2]
[367057033,1750639867236,-460.0,0.00022739,2]
[367057034,1750639867245,-460.0,0.00022739,2]
[367057035,1750639867254,-1356.4,0.00022739,2]
[367057036,1750639867262,-460.0,0.00022739,2]
[367057037,1750639867271,-460.0,0.00022739,2]
[367057038,1750639867280,-460.0,0.00022739,2]
[367057039,1750639867289,-460.0,0.00022739,2]
[367057040,1750639867298,-460.0,0.00022739,2]
[367057041,1750639867307,-472.73,0.00022739,2]
[367057042,1750639867316,-326.56438219,0.00022739,2]
[367057043,1750639867325,-460.0,0.00022739,2]
[367057044,1750639867335,-7527.08,0.00022739,2]
[367057045,1750639867346,-556.76,0.00022739,2]
[367057046,1750639867355,-947.43,0.00022739,2]
[367057047,1750639867364,-460.0,0.00022739,2]
[367057048,1750639867374,-2147.72,0.00022739,2]
[367057049,1750639867383,-1976.16,0.00022739,2]
[367057050,1750639867392,-466.93,0.00022739,2]
[367057051,1750639867400,-460.0,0.00022739,2]
[367057052,1750639867410,-460.0,0.00022739,2]
[367057053,1750639867419,-460.0,0.00022739,2]
[367057054,1750639867428,-460.0,0.00022739,2]
[367057055,1750639867437,-1007.42,0.00022739,2]
[367057056,1750639867446,-460.0,0.00022739,2]
[367057057,1750639867459,-460.0,0.00022739,2]
[367057058,1750639867470,-1339.36,0.00022739,2]
[367057059,1750639867480,-506.99,0.00022739,2]
[367057060,1750639867490,-460.0,0.00022739,2]
[367057061,1750639867499,-844.92,0.00022739,2]
[367057062,1750639867509,-696.87,0.00022739,2]
[367057063,1750639867519,-700.86,0.00022739,2]
[367057064,1750639867529,-1393.54,0.00022739,2]
[367057065,1750639867539,-644.35,0.00022739,2]
[367057066,1750639867548,-1466.03,0.00022739,2]
[367057067,1750639867558,-460.0,0.00022739,2]
[367057068,1750639867568,-460.0,0.00022739,2]
[367057069,1750639867577,-151.0,0.00022739,7]
[367057070,1750639867587,-151.0,0.00022739,7]
[367057071,1750639867598,-460.0,0.00022739,2]
[367057072,1750639867608,-460.0,0.00022739,2]
[367057073,1750639867618,-460.0,0.00022739,2]
[367057074,1750639867627,-460.0,0.00022739,2]
[367057075,1750639867637,-1276.49,0.00022739,2]
[367057076,1750639867647,-460.0,0.00022739,2]
[367057077,1750639867657,-856.36,0.00022739,2]
[367057078,1750639867667,-460.0,0.00022739,2]
[367057079,1750639867678,-6054.31,0.00022739,2]
[367057080,1750639867688,-460.0,0.00022739,2]
[367057081,1750639867698,-836.45,0.00022739,2]
[367057082,1750639867707,-1034.19,0.00022739,2]
[367057083,1750639867717,-160.0,0.00022739,7]
[367057084,1750639867727,-460.0,0.00022739,2]
[367057085,1750639867737,-767.530591,0.00022739,7]
[367057086,1750639867746,-767.530591,0.00022739,7]
[367057087,1750639867756,-1311.16,0.00022739,2]
[367057088,1750639867766,-767.530591,0.00022739,7]
[367057089,1750639867775,-460.0,0.00022739,2]
[367057090,1750639867785,-3354.9,0.00022739,2]
[367057091,1750639867795,-767.530591,0.00022739,7]
[367057092,1750639867805,-460.0,0.00022739,2]
[367057093,1750639867814,-1354.33,0.00022739,2]
[367057094,1750639867824,-460.0,0.00022739,2]
[367057095,1750639867834,-460.0,0.00022739,2]
[367057096,1750639867846,-460.0,0.00022739,2]
[367057097,1750639867856,-4641.53,0.00022739,2]
[367057098,1750639867865,-460.0,0.00022739,2]
[367057099,1750639867875,-3656.674394,0.00022739,7]
[367057100,1750639867884,-3656.674394,0.00022739,7]
[367057101,1750639867894,-151.0,0.00022739,7]
[367057102,1750639867904,-151.0,0.00022739,7]
[367057103,1750639867914,-460.0,0.00022739,2]
[367057104,1750639867923,-3656.674394,0.00022739,7]
[367057105,1750639867932,-4104.92,0.00022739,2]
[367057106,1750639867942,-3656.674394,0.00022739,7]
[367057107,1750639867951,-151.0,0.00022739,7]
[367057108,1750639867960,-151.0,0.00022739,7]
[367057109,1750639867970,-1282.89,0.00022739,2]
[367057110,1750639867979,-1084.49,0.00022739,2]
[367057111,1750639867989,-460.0,0.00022739,2]
[367057112,1750639867998,-951.08,0.00022739,2]
[367057113,1750639868009,-808.72,0.00022739,2]
[367057114,1750639868019,-1652.51,0.00022739,2]
[367057115,1750639868029,-460.0,0.00022739,2]
[367057116,1750639868038,-506.04970629,0.00022739,2]
[367057117,1750639868048,-460.0,0.00022739,2]
[367057118,1750639868057,-460.0,0.00022739,2]
[367057119,1750639868067,-460.0,0.00022739,2]
[367057120,1750639868078,-2661.47,0.00022739,2]
[367057121,1750639868088,-200.6829003,0.00022739,2]
[367057122,1750639868100,-460.0,0.00022739,2]
[367057123,1750639868110,-460.0,0.00022739,2]
[367057124,1750639868120,-20679.38,0.00022739,2]
[367057125,1750639868130,-460.0,0.00022739,2]
[367057126,1750639868140,-555.81,0.00022739,2]
[367057127,1750639868150,-489.02,0.00022739,2]
[367057128,1750639868160,-460.0,0.00022739,2]
[367057129,1750639868170,-460.0,0.00022739,2]
[367057130,1750639868180,-460.0,0.00022739,2]
[367057131,1750639868190,-460.64812954,0.00022739,2]
[367057132,1750639868200,-1034.81,0.00022739,2]
[367057133,1750639868212,-4985.08,0.00022739,2]
[367057134,1750639868223,-460.0,0.00022739,2]
[367057135,1750639868233,-460.0,0.00022739,2]
[367057136,1750639868243,-460.0,0.00022739,2]
[367057137,1750639868254,-151.0,0.00022739,7]
[367057138,1750639868264,-151.0,0.00022739,7]
[367057139,1750639868273,-466.19761979,0.00022739,2]
[367057140,1750639868284,-3125.15,0.00022739,2]
[367057141,1750639868294,-460.0,0.00022739,2]
[367057142,1750639868304,-2766.56,0.00022739,2]
[367057143,1750639868314,-1439.84,0.00022739,2]
[367057144,1750639868325,-460.0,0.00022739,2]
[367057145,1750639868335,-460.0,0.00022739,2]
[367057146,1750639868348,-460.0,0.00022739,2]
[367057147,1750639868358,-460.0,0.00022739,2]
[367057148,1750639868368,-282.08107859,0.00022739,2]
[367057149,1750639868378,-871.07,0.00022739,2]
[367057150,1750639868388,-2068.54,0.00022739,2]
[367057151,1750639868398,-1006.17,0.00022739,2]
[367057152,1750639868408,-460.0,0.00022739,2]
[367057153,1750639868419,-460.0,0.00022739,2]
[367057154,1750639868430,-489.87,0.00022739,2]
[367057155,1750639868442,-460.0,0.00022739,2]
[367057156,1750639868452,-460.0,0.00022739,2]
[367057157,1750639868462,-520.04379335,0.00022739,2]
[367057158,1750639868473,-2356.32,0.00022739,2]
[367057159,1750639868484,-460.0,0.00022739,2]
[367057160,1750639868493,-790.32,0.00022739,2]
[367057161,1750639868503,-460.0,0.00022739,2]
[367057162,1750639868513,-5865.65,0.00022739,2]
[367057163,1750639868524,-568.34,0.00022739,2]
[367057164,1750639868536,-889.68,0.00022739,2]
[367057165,1750639868546,-460.0,0.00022739,2]
[367057166,1750639868556,-460.0,0.00022739,2]
[367057167,1750639868567,-460.0,0.00022739,2]
[367057168,1750639868578,-460.0,0.00022739,2]
[367057169,1750639868589,-584.14,0.00022739,2]
[367057170,1750639868604,-956.65,0.00022739,2]
[367057171,1750639868614,-3438.1,0.00022739,2]
[367057172,1750639868624,-3587.65,0.00022739,2]
[367057173,1750639868635,-1304.62752,0.00022739,7]
[367057174,1750639868647,-1304.62752,0.00022739,7]
[367057175,1750639868658,-460.0,0.00022739,2]
[367057176,1750639868669,-460.0,0.00022739,2]
[367057177,1750639868679,-492.8,0.00022739,2]
[367057178,1750639868690,-313.975686,0.00022739,2]
[367057179,1750639868699,-1741.26,0.00022739,2]
[367057180,1750639868710,-6645.19,0.00022739,2]
[367057181,1750639868719,-698.82,0.00022739,2]
[367057182,1750639868730,-1304.62752,0.00022739,7]
[367057183,1750639868740,-1304.62752,0.00022739,7]
[367057184,1750639868750,-672.16,0.00022739,2]
[367057185,1750639868760,-1765.4,0.00022739,2]
[367057186,1750639868771,-1311.87,0.00022739,2]
[367057187,1750639868781,-574.19,0.00022739,2]
[367057188,1750639868791,-666.75,0.00022739,2]
[367057189,1750639868801,-753.67,0.00022739,2]
[367057190,1750639868811,-11550.61,0.00022739,2]
[367057191,1750639868821,-608.17,0.00022739,2]
[367057192,1750639868832,-1446.05,0.00022739,2]
[367057193,1750639868847,-2695.85,0.00022739,2]
[367057194,1750639868857,-3020.99,0.00022739,2]
[367057195,1750639868867,-460.0,0.00022739,2]
[367057196,1750639868877,-565.08,0.00022739,2]
[367057197,1750639868887,-524.02598587,0.00022739,7]
[367057198,1750639868897,-460.0,0.00022739,2]
[367057199,1750639868907,-460.0,0.00022739,2]
[367057200,1750639868916,-460.0,0.00022739,2]
[367057201,1750639868927,-460.0,0.00022739,2]
[367057202,1750639868937,-1507.87,0.00022739,2]
[367057203,1750639868947,-551.39,0.00022739,2]
[367057204,1750639868957,-1730.36,0.00022739,2]
[367057205,1750639868967,-460.0,0.00022739,2]
[367057206,1750639868979,-474.64823689,0.00022739,2]
[367057207,1750639868990,-460.0,0.00022739,2]
[367057208,1750639869000,-557.09,0.00022739,2]
[367057209,1750639869011,-587.72,0.00022739,2]
[367057210,1750639869022,-201.92029838,0.00022739,2]
[367057211,1750639869032,-460.0,0.00022739,2]
[367057212,1750639869042,-460.0,0.00022739,2]
[367057213,1750639869053,-460.0,0.00022739,2]
[367057214,1750639869063,-500.0,0.00022739,2]
[367057215,1750639869074,-7311.34,0.00022739,2]
[367057216,1750639869084,-1651.15,0.00022739,2]
[367057217,1750639869096,-151.0,0.00022739,7]
[367057218,1750639869107,-609.22,0.00022739,2]
[367057219,1750639869116,-151.0,0.00022739,7]
[367057220,1750639869127,-1141.66,0.00022739,2]